Workbook

Sheet Расчет 1-10 лет
A1: Расчет лизинговых платежей
L2: - ячейки для внесения данных
A3: Стоимость объекта лизинга без НДС, руб. | I3: 160,000,000
A4: Ставка НДС, % | I4: 20 | M4: 10
A5: Стоимость объекта лизинга с НДС, руб. | I5: =I3*(I4+100)/100 -> 192,000,000 | M5: 20
A6: Ставка по лизингу, % годовых | I6: 15 | K6: Выкупная стоимость - | M6: =J137 -> 28,800,000
A7: Срок лизинга, месяцев | I7: 24 | K7: Итого выплат - | M7: =J136+E137+E14 -> 248,568,000
A8: Авансовый платеж, % | I8: 10 | K8: Удорожание за весь срок - | M8: =I136/I5 -> 19.46%
A9: Выкупная стоимость, % | I9: 15 | K9: Амортизационные отчисления - | M9: =I10/I7 -> 5,666,667
A10: Амортизационная стоимость, руб. | I10: =$I$3*(100-$I$9)/100 -> 136,000,000
A12: Номер платежа | B12: Контрактная стоимость на начало периода без НДС | C12: Возмещение стоимости | F12: Остаток контрактной стоимости с НДС | G12: Ставка по лизингу | J12: Всего - лизинговый платеж с НДС
C13: cумма без НДС | D13: cумма НДС | E13: cумма с НДС | G13: cумма без НДС | H13: cумма НДС | I13: cумма с НДС
A14: Зачет аванса | B14: =I3 -> 160,000,000 | C14: =I3*I8/100 -> 16,000,000 | D14: =C14*$I$4/100 -> 3,200,000 | E14: =C14+D14 -> 19,200,000 | F14: =I5-(C14+D14) -> 172,800,000 | J14: =E14 -> 19,200,000
A16: =IF(A15>=$I$7,"",A15+1) -> 1 | B16: =I3-C14 -> 144,000,000 | C16: =IF(A16="","",($I$3*(100-$I$8-$I$9)/100)/($I$7)) -> 5,000,000 | D16: =IF(A16="","",C16*$I$4/100) -> 1,000,000 | E16: =IF(A16="","",D16+C16) -> 6,000,000 | F16: =IF(A16="","",F14-E16) -> 166,800,000 | G16: =IF(A16="","",F14*$I$6/100/12) -> 2,160,000 | H16: =IF(A16="","",G16*$I$4/100) -> 432,000 | I16: =IF(A16="","",G16+H16) -> 2,592,000 | J16: =IF(A16="","",E16+I16) -> 8,592,000
A17: =IF(A16>=$I$7,"",A16+1) -> 2 | B17: =IF(A17="","",B16-C16) -> 139,000,000 | C17: =IF(A17="","",($I$3*(100-$I$8-$I$9)/100)/($I$7)) -> 5,000,000 | D17: =IF(A17="","",C17*$I$4/100) -> 1,000,000 | E17: =IF(A17="","",D17+C17) -> 6,000,000 | F17: =IF(A17="","",F16-E17) -> 160,800,000 | G17: =IF(A17="","",F16*$I$6/100/12) -> 2,085,000 | H17: =IF(A17="","",G17*$I$4/100) -> 417,000 | I17: =IF(A17="","",G17+H17) -> 2,502,000 | J17: =IF(A17="","",E17+I17) -> 8,502,000
A18: =IF(A17>=$I$7,"",A17+1) -> 3 | B18: =IF(A18="","",B17-C17) -> 134,000,000 | C18: 5,000,000 | D18: 1,000,000 | E18: 6,000,000 | F18: =IF(A18="","",F17-E18) -> 154,800,000 | G18: =IF(A18="","",F17*$I$6/100/12) -> 2,010,000 | H18: 402,000 | I18: 2,412,000 | J18: =IF(A18="","",E18+I18) -> 8,412,000
A19: 4 | B19: 129,000,000 | C19: 5,000,000 | D19: 1,000,000 | E19: 6,000,000 | F19: 148,800,000 | G19: 1,935,000 | H19: 387,000 | I19: 2,322,000 | J19: 8,322,000
A20: 5 | B20: 124,000,000 | C20: 5,000,000 | D20: 1,000,000 | E20: 6,000,000 | F20: 142,800,000 | G20: 1,860,000 | H20: 372,000 | I20: 2,232,000 | J20: 8,232,000
A21: 6 | B21: 119,000,000 | C21: 5,000,000 | D21: 1,000,000 | E21: 6,000,000 | F21: 136,800,000 | G21: 1,785,000 | H21: 357,000 | I21: 2,142,000 | J21: 8,142,000
A22: 7 | B22: 114,000,000 | C22: 5,000,000 | D22: 1,000,000 | E22: 6,000,000 | F22: 130,800,000 | G22: 1,710,000 | H22: 342,000 | I22: 2,052,000 | J22: 8,052,000
A23: 8 | B23: 109,000,000 | C23: 5,000,000 | D23: 1,000,000 | E23: 6,000,000 | F23: 124,800,000 | G23: 1,635,000 | H23: 327,000 | I23: 1,962,000 | J23: 7,962,000
A24: 9 | B24: 104,000,000 | C24: 5,000,000 | D24: 1,000,000 | E24: 6,000,000 | F24: 118,800,000 | G24: 1,560,000 | H24: 312,000 | I24: 1,872,000 | J24: 7,872,000
A25: 10 | B25: 99,000,000 | C25: 5,000,000 | D25: 1,000,000 | E25: 6,000,000 | F25: 112,800,000 | G25: 1,485,000 | H25: 297,000 | I25: 1,782,000 | J25: 7,782,000
A26: 11 | B26: 94,000,000 | C26: 5,000,000 | D26: 1,000,000 | E26: 6,000,000 | F26: 106,800,000 | G26: 1,410,000 | H26: 282,000 | I26: 1,692,000 | J26: 7,692,000
A27: 12 | B27: 89,000,000 | C27: 5,000,000 | D27: 1,000,000 | E27: 6,000,000 | F27: 100,800,000 | G27: 1,335,000 | H27: 267,000 | I27: 1,602,000 | J27: 7,602,000
A28: 13 | B28: 84,000,000 | C28: 5,000,000 | D28: 1,000,000 | E28: 6,000,000 | F28: 94,800,000 | G28: 1,260,000 | H28: 252,000 | I28: 1,512,000 | J28: 7,512,000
A29: 14 | B29: 79,000,000 | C29: 5,000,000 | D29: 1,000,000 | E29: 6,000,000 | F29: 88,800,000 | G29: 1,185,000 | H29: 237,000 | I29: 1,422,000 | J29: 7,422,000
A30: 15 | B30: 74,000,000 | C30: 5,000,000 | D30: 1,000,000 | E30: 6,000,000 | F30: 82,800,000 | G30: 1,110,000 | H30: 222,000 | I30: 1,332,000 | J30: 7,332,000
A31: 16 | B31: 69,000,000 | C31: 5,000,000 | D31: 1,000,000 | E31: 6,000,000 | F31: 76,800,000 | G31: 1,035,000 | H31: 207,000 | I31: 1,242,000 | J31: 7,242,000
A32: 17 | B32: 64,000,000 | C32: 5,000,000 | D32: 1,000,000 | E32: 6,000,000 | F32: 70,800,000 | G32: 960,000 | H32: 192,000 | I32: 1,152,000 | J32: 7,152,000
A33: 18 | B33: 59,000,000 | C33: 5,000,000 | D33: 1,000,000 | E33: 6,000,000 | F33: 64,800,000 | G33: 885,000 | H33: 177,000 | I33: 1,062,000 | J33: 7,062,000
A34: 19 | B34: 54,000,000 | C34: 5,000,000 | D34: 1,000,000 | E34: 6,000,000 | F34: 58,800,000 | G34: 810,000 | H34: 162,000 | I34: 972,000 | J34: 6,972,000
A35: 20 | B35: 49,000,000 | C35: 5,000,000 | D35: 1,000,000 | E35: 6,000,000 | F35: 52,800,000 | G35: 735,000 | H35: 147,000 | I35: 882,000 | J35: 6,882,000
A36: 21 | B36: 44,000,000 | C36: 5,000,000 | D36: 1,000,000 | E36: 6,000,000 | F36: 46,800,000 | G36: 660,000 | H36: 132,000 | I36: 792,000 | J36: 6,792,000
A37: 22 | B37: 39,000,000 | C37: 5,000,000 | D37: 1,000,000 | E37: 6,000,000 | F37: 40,800,000 | G37: 585,000 | H37: 117,000 | I37: 702,000 | J37: 6,702,000
A38: 23 | B38: 34,000,000 | C38: 5,000,000 | D38: 1,000,000 | E38: 6,000,000 | F38: 34,800,000 | G38: 510,000 | H38: 102,000 | I38: 612,000 | J38: 6,612,000
A39: 24 | B39: 29,000,000 | C39: 5,000,000 | D39: 1,000,000 | E39: 6,000,000 | F39: 28,800,000 | G39: 435,000 | H39: 87,000 | I39: 522,000 | J39: 6,522,000
A82: =IF(A81>=$I$7,"",A81+1) ->  | B82: =IF(A82="","",B81-C81) ->  | F82: =IF(A82="","",F81-E82) ->  | G82: =IF(A82="","",F81*$I$6/100/12) ->  | J82: =IF(A82="","",E82+I82) -> 
J103: =IF(A103="","",E103+I103) -> 
J104: =IF(A104="","",E104+I104) -> 
C123: =IF(A123="","",($I$3*(100-$I$8-$I$9)/100)/($I$7)) ->  | D123: =IF(A123="","",C123*$I$4/100) ->  | E123: =IF(A123="","",D123+C123) ->  | H123: =IF(A123="","",G123*$I$4/100) ->  | I123: =IF(A123="","",G123+H123) -> 
A136: Итого | C136: =SUM(C14:C135) -> 136,000,000 | D136: =SUM(D14:D135) -> 27,200,000 | E136: =SUM(E14:E135) -> 163,200,000 | G136: =SUM(G16:G135) -> 31,140,000 | I136: =SUM(I16:I135) -> 37,368,000 | J136: =SUM(J14:J135) -> 200,568,000
A137: Выкупная стоимость | C137: =I3*I9/100 -> 24,000,000 | D137: =C137*I4/100 -> 4,800,000 | E137: =C137+D137 -> 28,800,000 | J137: =C137+D137 -> 28,800,000
